bitfinex-derivatives/quotes_BTCF0:USTF0_20250812
["timestamp","ask_amount","ask_price","bid_price","bid_amount"]
[1755005749901,0.16516939,119600.0,119590.0,0.1581693]
[1755005750095,0.76268854,119600.0,119590.0,0.1581693]
[1755005750401,0.76268854,119600.0,119590.0,0.1571693]
[1755005750602,0.76268854,119600.0,119590.0,0.1581693]
[1755005750905,0.76268854,119600.0,119590.0,0.1581694]
[1755005751101,0.76268854,119600.0,119590.0,0.07455]
[1755005751402,0.76268854,119600.0,119590.0,0.1581694]
[1755005752497,0.76268854,119600.0,119590.0,0.1094894]
[1755005752805,0.76268854,119600.0,119570.0,0.1085034]
[1755005752806,0.0836264,119580.0,119570.0,0.1085034]
[1755005753006,0.74563555,119580.0,119570.0,0.9414734]
[1755005753298,0.69563555,119580.0,119570.0,1.0150234]
[1755005753694,0.69563555,119580.0,119560.0,0.2509177]
[1755005753895,0.74564255,119570.0,119560.0,0.8602]
[1755005754096,0.74564255,119570.0,119560.0,0.9438404]
[1755005754402,0.74564255,119570.0,119560.0,0.88507]
[1755005754704,0.74564255,119570.0,119560.0,1.0173904]
[1755005754705,0.1161834,119570.0,119560.0,1.0173904]
[1755005754895,0.241571,119580.0,119560.0,1.1846667]
[1755005755201,0.1172568,119580.0,119570.0,0.1571832]
[1755005755397,0.14123199,119600.0,119580.0,0.2508685]
[1755005755593,0.13823199,119600.0,119590.0,1.0169692]
[1755005755796,0.10068199,119600.0,119590.0,1.0169692]
[1755005757092,0.01706669,119600.0,119590.0,1.0169692]
[1755005757298,0.01706669,119600.0,119590.0,1.61448835]
[1755005757600,0.01706669,119600.0,119590.0,1.0169692]
[1755005757800,0.10067889,119600.0,119590.0,1.0169692]
[1755005758001,0.01706669,119600.0,119590.0,1.0169692]
[1755005758302,0.05067889,119600.0,119590.0,1.0179692]
[1755005758518,0.88089475,119610.0,119600.0,0.0836122]
[1755005758703,0.1997634,119610.0,119600.0,0.1571622]
[1755005759909,0.2108934,119610.0,119600.0,0.1571622]
[1755005760103,0.2347034,119610.0,119600.0,0.1571622]
[1755005760403,0.83222255,119610.0,119600.0,1.0152022]
[1755005760805,0.83222255,119610.0,119600.0,0.9665222]
[1755005760998,0.83222255,119610.0,119600.0,0.1084822]
[1755005761200,0.0836192,119590.0,119580.0,0.9788561]
[1755005761395,0.74562835,119590.0,119570.0,0.2015823]
[1755005761607,0.74563525,119580.0,119570.0,0.05919]
[1755005761802,0.74563525,119580.0,119570.0,0.02487]
[1755005762106,0.1481161,119580.0,119570.0,0.1571832]
[1755005762404,0.1243061,119580.0,119570.0,0.1571832]
[1755005763196,0.1243061,119580.0,119570.0,0.1601832]
[1755005763401,0.74671525,119580.0,119570.0,0.07655]
[1755005763700,0.250917,119570.0,119560.0,0.0836398]
[1755005763901,0.99897635,119570.0,119550.0,0.40754024]
[1755005764099,0.74805935,119560.0,119550.0,1.26234024]
[1755005764609,0.2260446,119570.0,119560.0,0.0836401]
[1755005764810,0.0836332,119570.0,119560.0,0.4068]
[1755005765103,0.3426565,119580.0,119570.0,0.0836332]
[1755005765308,0.3096383,119590.0,119570.0,1.77534415]
[1755005765614,0.2002503,119600.0,119580.0,1.00426935]
[1755005765802,0.2847284,119600.0,119590.0,0.1558692]
[1755005766109,0.91526755,119600.0,119590.0,1.0106692]
[1755005766308,0.3177484,119600.0,119590.0,0.9616592]
[1755005766509,0.91526755,119600.0,119590.0,0.1068592]
[1755005766814,0.0836192,119590.0,119580.0,0.274114]
[1755005767110,0.0836192,119590.0,119580.0,0.1672478]
[1755005767111,0.74803835,119590.0,119580.0,0.1672478]
[1755005767311,0.91528965,119590.0,119570.0,0.3049087]
[1755005767503,0.1505262,119580.0,119570.0,0.1722658]
[1755005767810,0.74804535,119580.0,119570.0,0.2445158]
[1755005768013,0.74804535,119580.0,119570.0,0.2425158]
[1755005768504,0.0836262,119580.0,119570.0,0.1215529]
[1755005768708,0.1175062,119580.0,119570.0,0.1558829]
[1755005768907,0.74804535,119580.0,119570.0,0.1568829]
[1755005769107,0.72315535,119580.0,119570.0,0.1578829]
[1755005769310,0.71502535,119580.0,119570.0,0.1578829]
[1755005769712,0.1175062,119580.0,119570.0,0.1578829]
[1755005769912,0.1256362,119580.0,119570.0,0.1578829]
[1755005770113,0.74804535,119580.0,119570.0,0.1568829]
[1755005770315,0.74804535,119580.0,119570.0,0.1578829]
[1755005770912,0.1175062,119580.0,119570.0,0.1578829]
[1755005771413,0.74804535,119580.0,119570.0,0.1578829]
[1755005771618,0.1505262,119580.0,119570.0,0.1578829]
[1755005771912,0.1505262,119580.0,119570.0,0.1568829]
[1755005772212,0.74804535,119580.0,119570.0,0.1578829]
[1755005772412,0.1505262,119580.0,119570.0,0.1578829]
[1755005772600,0.74804535,119580.0,119570.0,0.1568829]
[1755005775708,0.1505262,119580.0,119570.0,0.1568829]
[1755005775917,0.03388,119580.0,119570.0,0.1568829]
[1755005776119,0.0669,119590.0,119580.0,0.0836261]
[1755005776414,0.04215553,119600.0,119580.0,1.85686895]
[1755005776716,0.05114553,119600.0,119590.0,0.1558691]
[1755005776914,0.76529678,119600.0,119590.0,0.1558691]
[1755005777215,0.76529678,119600.0,119590.0,0.0836191]
[1755005777621,0.76529678,119600.0,119590.0,0.1068591]
[1755005777809,0.01726553,119600.0,119590.0,1.0084691]
[1755005778413,0.02026553,119600.0,119590.0,1.0084691]
[1755005779219,0.02026553,119600.0,119590.0,1.0094691]
[1755005780119,0.05414553,119600.0,119590.0,1.0094691]
[1755005780317,0.003,119600.0,119590.0,1.60698825]
[1755005780523,1e-07,119600.0,119590.0,1.60698825]
[1755005780722,0.00813,119630.0,119620.0,0.0835981]
[1755005780924,0.04201,119630.0,119620.0,1.0083681]
[1755005781515,0.1256011,119630.0,119620.0,1.0083681]
[1755005781729,0.0669,119630.0,119620.0,1.0083681]
[1755005781922,0.008,119630.0,119620.0,1.0083681]
[1755005782123,0.008,119630.0,119620.0,1.60588725]
[1755005782424,0.01704438,119640.0,119630.0,0.0835911]
[1755005782617,0.01704438,119640.0,119630.0,0.1558411]
[1755005782812,0.73202763,119640.0,119630.0,0.1558411]
[1755005783117,0.68146353,119640.0,119630.0,1.0082811]
[1755005783521,0.08394438,119640.0,119630.0,1.0082811]
[1755005783828,0.05092438,119640.0,119630.0,1.0082811]
[1755005784330,0.76504763,119640.0,119630.0,1.0082811]
[1755005784625,0.05092438,119640.0,119630.0,1.0082811]
[1755005784816,0.05092438,119640.0,119630.0,1.0132811]
[1755005784817,0.01704438,119640.0,119630.0,1.0132811]
[1755005785017,0.01704438,119640.0,119630.0,1.61180025]
[1755005785213,0.0917002,119660.0,119650.0,0.0835772]
[1755005785419,0.72309935,119660.0,119650.0,0.0835772]
[1755005785618,0.72309935,119660.0,119650.0,1.0082272]
[1755005785819,0.74798935,119660.0,119650.0,1.0082272]
[1755005786120,0.74798935,119660.0,119650.0,1.0081472]
[1755005786418,0.74898935,119660.0,119650.0,1.0081472]
[1755005786627,0.64052915,119660.0,119650.0,1.0081472]
[1755005787422,0.72409935,119660.0,119650.0,0.1558272]
[1755005787629,0.001,119660.0,119650.0,0.1558272]
[1755005789226,0.01664809,119670.0,119660.0,0.0835702]
[1755005789426,0.01664809,119670.0,119660.0,0.9357302]
[1755005789728,0.01664809,119670.0,119660.0,1.0079802]
[1755005790027,0.01664809,119670.0,119660.0,1.60549935]
[1755005790624,0.01664809,119670.0,119660.0,1.0079802]
[1755005790923,0.03388,119700.0,119690.0,0.0835492]
[1755005791129,0.03388,119700.0,119690.0,1.0079192]
[1755005791320,0.76469859,119710.0,119700.0,0.0835422]
[1755005791515,0.76469859,119710.0,119700.0,0.1557922]
[1755005791815,0.76469849,119710.0,119700.0,0.1557922]
[1755005792318,0.76415849,119710.0,119700.0,0.1538822]
[1755005792519,0.08310414,119710.0,119700.0,0.1538822]
[1755005792727,0.08310414,119710.0,119700.0,0.1548822]
[1755005792929,0.16663934,119710.0,119700.0,0.1548822]
[1755005793129,0.08510414,119710.0,119700.0,0.1548822]
[1755005793427,0.76615849,119710.0,119700.0,0.1548822]
[1755005793728,0.16863934,119710.0,119700.0,0.1548822]
[1755005793928,0.76615849,119710.0,119700.0,0.1548822]
[1755005795724,0.76615849,119710.0,119700.0,0.001]
[1755005796032,0.76615849,119710.0,119700.0,0.0845422]
[1755005796429,0.76615849,119710.0,119700.0,0.1566022]
[1755005796819,0.76615849,119710.0,119700.0,0.1095022]
[1755005797225,0.16863934,119710.0,119700.0,0.1095022]
[1755005797430,0.85615849,119710.0,119700.0,0.001]
[1755005797623,1.89491849,119710.0,119700.0,0.001]
[1755005797823,1.78491849,119710.0,119700.0,0.001]
[1755005798023,1.83491849,119710.0,119700.0,0.001]
[1755005798224,0.33571934,119710.0,119700.0,0.001]
[1755005798433,0.76615849,119710.0,119700.0,0.001]
[1755005799726,1.36367764,119710.0,119700.0,0.001]
[1755005799933,0.0835561,119680.0,119670.0,0.2756426]
[1755005800224,0.74657525,119680.0,119670.0,0.3227426]
[1755005800425,0.1490561,119680.0,119670.0,0.3227426]
[1755005800624,0.74657525,119680.0,119670.0,0.3227426]
[1755005800831,0.0835631,119670.0,119660.0,0.1920992]
[1755005801033,0.74658225,119670.0,119650.0,0.0471]
[1755005801328,0.083584,119640.0,119630.0,0.03376344]
[1755005801628,0.74660315,119640.0,119630.0,0.01884344]
[1755005802124,0.149084,119640.0,119630.0,0.01884344]
[1755005802332,0.74660315,119640.0,119630.0,0.17449444]
[1755005802528,0.74660315,119640.0,119630.0,0.09090344]
[1755005802724,0.74660315,119640.0,119630.0,0.04380344]
[1755005802919,0.74660315,119640.0,119630.0,0.01884344]
[1755005803528,0.74660315,119640.0,119630.0,0.12739444]
[1755005803728,0.74660315,119640.0,119630.0,0.15957444]
[1755005803930,0.74660315,119640.0,119630.0,0.09090344]
[1755005804232,0.74660315,119640.0,119630.0,0.17549444]
[1755005804731,0.149084,119640.0,119630.0,0.17549444]
[1755005805034,0.74660315,119640.0,119630.0,0.17549444]
[1755005805328,0.03302,119640.0,119630.0,0.17549444]
[1755005805534,0.0835771,119650.0,119640.0,0.083584]
[1755005805830,0.74659625,119650.0,119640.0,0.155644]
[1755005806032,0.74659625,119650.0,119640.0,0.108544]
[1755005806227,0.2493117,119660.0,119640.0,0.3228077]
[1755005806432,0.0166657,119660.0,119650.0,0.155637]
[1755005806825,0.0166657,119660.0,119650.0,0.75315615]
[1755005807128,0.76463675,119680.0,119670.0,0.250672]
[1755005807435,0.80578675,119680.0,119670.0,0.322732]
[1755005808531,0.3161765,119680.0,119670.0,0.322732]
[1755005808827,0.91369565,119680.0,119670.0,0.277632]
[1755005809032,0.91369565,119680.0,119670.0,0.003]
[1755005809630,0.0835768,119650.0,119640.0,1.2577087]
[1755005809831,0.0917057,119660.0,119650.0,0.0835768]
[1755005810031,0.0835757,119660.0,119650.0,0.1556368]
[1755005810333,0.1247257,119660.0,119650.0,0.1556368]
[1755005810534,0.87256735,119670.0,119650.0,0.322786]
[1755005810727,0.3080682,119670.0,119660.0,0.1556298]
[1755005811131,0.1752473,119680.0,119670.0,0.0835628]
[1755005811329,0.2082673,119680.0,119670.0,0.1556228]
[1755005811527,0.0835628,119670.0,119660.0,0.1671352]
[1755005811727,0.74658195,119670.0,119660.0,0.1671352]
[1755005811927,0.0835698,119660.0,119650.0,1.173986]
[1755005812224,0.1490698,119660.0,119650.0,1.175986]
[1755005812528,0.74658895,119660.0,119650.0,1.175906]
[1755005812834,0.74658895,119660.0,119650.0,1.0087567]
[1755005813536,0.1490698,119660.0,119650.0,1.0087567]
[1755005813736,0.74658895,119660.0,119650.0,0.85312]
[1755005814032,0.77174085,119660.0,119650.0,0.002]
[1755005814330,0.86174085,119660.0,119650.0,0.002]
[1755005814530,0.77174085,119660.0,119650.0,0.002]
[1755005814930,0.0835837,119640.0,119630.0,1.10912184]
[1755005815638,0.3343257,119650.0,119640.0,0.0835837]
[1755005815829,0.66301915,119660.0,119640.0,0.92032585]
[1755005815830,0.2102963,119660.0,119640.0,0.92032585]
[1755005816027,0.3362997,119660.0,119650.0,1.0066767]
[1755005816230,0.3693197,119660.0,119650.0,1.0066767]
[1755005817036,0.002,119660.0,119650.0,1.0066767]
[1755005817338,0.0845697,119660.0,119650.0,1.0066767]
[1755005817526,0.0835697,119660.0,119650.0,1.60419585]
[1755005817725,0.0835697,119660.0,119650.0,0.75315585]
[1755005817933,0.3342749,119670.0,119660.0,0.0835697]
[1755005818131,0.3672949,119670.0,119660.0,0.1556297]
[1755005818443,0.3342495,119680.0,119670.0,0.0835627]
[1755005818735,0.1671241,119680.0,119670.0,1.0065427]
[1755005818934,0.2918057,119690.0,119670.0,1.77118275]
[1755005819142,0.2836757,119690.0,119680.0,0.72817485]
[1755005819335,0.2836757,119690.0,119680.0,0.1556157]
[1755005820037,0.2918057,119690.0,119680.0,0.1556157]
[1755005820241,0.0835557,119680.0,119670.0,1.2422263]
[1755005820444,0.0835557,119680.0,119670.0,1.78260545]
[1755005820635,0.0835557,119680.0,119670.0,1.1850863]
[1755005820835,0.2506557,119690.0,119680.0,0.0835557]
[1755005821030,0.2506557,119690.0,119680.0,0.1556157]
[1755005821241,0.91367485,119690.0,119680.0,0.0835557]
[1755005821549,0.3161557,119690.0,119680.0,0.1085157]
[1755005821738,0.3161557,119690.0,119680.0,0.1556157]
[1755005822042,0.0835557,119680.0,119670.0,0.1586182]
[1755005822341,0.74657485,119680.0,119670.0,0.1095182]
[1755005822746,0.74657485,119680.0,119670.0,0.001]
[1755005822944,0.93884419,119680.0,119670.0,0.001]
[1755005823238,0.0835627,119670.0,119660.0,0.2507034]
[1755005823448,0.74677185,119670.0,119660.0,0.167134]
[1755005823938,0.0835696,119660.0,119650.0,0.34209811]
[1755005824244,0.74677875,119660.0,119650.0,0.21022161]
[1755005824440,0.1492596,119660.0,119650.0,0.21022161]
[1755005824639,0.1492596,119660.0,119650.0,0.25852161]
[1755005825232,0.1492596,119660.0,119650.0,0.18768161]
[1755005825436,0.74677875,119660.0,119650.0,0.02053201]
[1755005825642,0.77195031,119660.0,119650.0,0.02053201]
[1755005826242,0.17443116,119660.0,119650.0,0.17694861]
[1755005826441,0.17443116,119660.0,119650.0,0.17794861]
[1755005826738,0.77195031,119660.0,119650.0,0.02153201]
[1755005827446,0.77195031,119660.0,119650.0,0.02053201]
[1755005827646,0.17443116,119660.0,119650.0,0.10410851]
[1755005827851,0.77195031,119660.0,119650.0,0.02053201]
[1755005828038,0.77195031,119660.0,119650.0,0.002]
[1755005828239,0.77195031,119660.0,119650.0,0.0855765]
[1755005828438,0.17443116,119660.0,119650.0,0.0855765]
[1755005828743,0.17543116,119660.0,119650.0,0.1081165]
[1755005828942,0.1189096,119660.0,119650.0,0.75393565]
[1755005829140,0.0845696,119660.0,119650.0,0.75393565]
[1755005829339,0.1179096,119660.0,119650.0,0.75393565]
[1755005829535,0.33307145,119670.0,119650.0,1.00466055]
[1755005829741,0.10024555,119670.0,119660.0,1.60428865]
[1755005829936,0.01668295,119670.0,119660.0,1.60428865]
[1755005830339,0.07924145,119680.0,119660.0,1.77142315]
[1755005830545,0.30167658,119690.0,119680.0,0.0835556]
[1755005830744,0.30167658,119690.0,119680.0,0.1563956]
[1755005830943,0.21812198,119690.0,119680.0,0.1563956]
[1755005831141,0.10022918,119690.0,119680.0,1.0066756]
[1755005831551,0.01668008,119690.0,119680.0,1.60419475]
[1755005831740,0.13456868,119690.0,119680.0,0.1563956]
[1755005835350,0.76343783,119690.0,119680.0,0.1563956]
[1755005835551,0.16591868,119690.0,119680.0,0.1563956]
[1755005835850,0.10022868,119690.0,119680.0,0.75391475]
[1755005836552,0.1670907,119700.0,119690.0,0.0835486]
[1755005836754,0.01674414,119710.0,119690.0,1.85434905]
[1755005836952,0.10027874,119710.0,119700.0,0.1563816]
[1755005837251,0.10027874,119710.0,119700.0,1.07429183]
[1755005837252,0.16596874,119710.0,119700.0,1.07429183]
[1755005837952,0.14274874,119710.0,119700.0,1.07429183]
[1755005838153,0.13761874,119710.0,119700.0,1.08270937]
[1755005838655,0.16596874,119710.0,119700.0,1.07429183]
[1755005838954,0.76648789,119710.0,119700.0,0.9578416]
[1755005839251,0.16896874,119710.0,119700.0,0.9578416]
[1755005839452,0.17096874,119710.0,119700.0,0.9578416]
[1755005839954,0.76848789,119710.0,119700.0,0.9912616]
[1755005840256,0.0835416,119700.0,119690.0,0.1229641]
[1755005840456,0.1492316,119700.0,119690.0,0.1563841]
[1755005840757,0.1178816,119700.0,119690.0,0.1563841]
[1755005840952,0.0835416,119700.0,119690.0,0.82232651]
[1755005841666,0.39024054,119710.0,119700.0,0.0835416]
[1755005841857,0.2869558,119710.0,119700.0,0.1563816]
[1755005842255,0.2930648,119720.0,119700.0,1.77045935]
[1755005842563,0.0001,119730.0,119720.0,0.0835276]
[1755005842764,0.0001,119730.0,119720.0,1.60320675]
[1755005843166,0.01706629,119750.0,119740.0,0.0835136]
[1755005843370,0.3915549,119770.0,119760.0,0.0834997]
[1755005843664,2.49720405,119770.0,119760.0,0.84924]
[1755005843868,0.0834997,119760.0,119750.0,0.0483]
[1755005844165,0.0835066,119750.0,119740.0,0.10241136]
[1755005844360,0.74671575,119750.0,119740.0,0.10241136]
[1755005844559,0.74671575,119750.0,119740.0,0.01889776]
[1755005844960,0.74671575,119750.0,119740.0,0.10241136]
[1755005845167,0.1491966,119750.0,119740.0,0.14183136]
[1755005845358,0.1410666,119750.0,119740.0,0.17525136]
[1755005845558,0.0835066,119750.0,119740.0,0.77677051]
[1755005845766,0.2505101,119760.0,119750.0,0.0835066]
[1755005845966,0.2505101,119760.0,119750.0,0.9718466]
[1755005846163,0.2505101,119760.0,119750.0,1.0052666]
[1755005846364,0.3080701,119760.0,119750.0,1.0052666]
[1755005846960,0.91371925,119760.0,119750.0,0.92376]
[1755005847166,0.91371925,119760.0,119750.0,1.0072666]
[1755005847369,0.91371925,119760.0,119750.0,0.92376]
[1755005847569,0.91371925,119760.0,119750.0,0.002]
[1755005848073,0.3080701,119760.0,119750.0,0.1583466]
[1755005848267,0.2505101,119760.0,119750.0,0.1613466]
[1755005848774,1.8339957,119770.0,119760.0,0.0834996]
[1755005848970,0.3339957,119770.0,119760.0,1.0049796]
[1755005849277,0.99720485,119770.0,119760.0,0.1563396]
[1755005849467,2.49720485,119770.0,119760.0,0.1563396]
[1755005849668,2.49720485,119770.0,119760.0,0.1563397]
[1755005849869,2.49720485,119770.0,119760.0,0.1573397]
[1755005850168,0.3996857,119770.0,119760.0,0.07384]
[1755005850368,0.3996857,119770.0,119760.0,0.1573397]
[1755005850770,0.99720485,119770.0,119760.0,0.003]
[1755005852366,0.0835067,119750.0,119740.0,0.01889776]
[1755005852566,0.74561585,119750.0,119740.0,0.01889776]
[1755005852772,0.1480967,119750.0,119740.0,0.10241146]
[1755005852978,0.1480967,119750.0,119740.0,0.17282146]
[1755005853469,0.1172167,119750.0,119740.0,0.17282146]
[1755005853670,0.0835067,119750.0,119740.0,1.02402146]
[1755005853872,0.2842224,119760.0,119750.0,0.0835067]
[1755005854071,0.2505124,119760.0,119750.0,0.75143585]
[1755005854270,0.3069724,119760.0,119750.0,0.1539167]
[1755005854475,0.0835067,119750.0,119740.0,0.02489776]
[1755005854678,1.343135,119750.0,119740.0,0.02489776]
[1755005854871,1.453135,119750.0,119740.0,0.02489776]
[1755005855070,1.453135,119750.0,119740.0,0.02189776]
[1755005855071,1.620159,119750.0,119740.0,0.02189776]
[1755005855271,1.64535526,119750.0,119740.0,0.02189776]
[1755005855579,0.0835276,119720.0,119710.0,0.2374776]
[1755005855875,0.74563675,119720.0,119710.0,0.1539432]
[1755005856070,0.1253676,119720.0,119710.0,0.1539432]
[1755005856266,0.1172376,119720.0,119710.0,0.1539432]
[1755005856571,0.0835276,119720.0,119710.0,0.1539432]
[1755005856878,0.1172376,119720.0,119710.0,0.1539432]
[1755005857278,0.72288675,119720.0,119710.0,0.1579432]
[1755005857480,0.74563675,119720.0,119710.0,0.1579432]
[1755005857778,0.0835415,119700.0,119690.0,0.02426]
[1755005858082,0.0835485,119690.0,119680.0,0.1398255]
[1755005858278,0.1172585,119690.0,119680.0,0.1539655]
[1755005858579,0.0835485,119690.0,119680.0,0.1539655]
[1755005858771,0.1670759,119710.0,119700.0,0.0835415]
[1755005858979,0.0835345,119710.0,119700.0,0.1539515]
[1755005859175,0.72289365,119710.0,119700.0,0.1539515]
[1755005859880,0.72389365,119710.0,119700.0,0.1539515]
[1755005860180,0.72389365,119710.0,119700.0,0.2201036]
[1755005860784,0.74664365,119710.0,119700.0,0.1739536]
[1755005861277,0.74664365,119710.0,119700.0,0.2079636]
[1755005861781,0.74664365,119710.0,119700.0,0.2069636]
[1755005861981,0.74664365,119710.0,119700.0,0.2211036]
[1755005862882,0.72389365,119710.0,119700.0,0.2211036]
[1755005863087,0.1263745,119710.0,119700.0,0.2211036]
[1755005863275,0.74664365,119710.0,119700.0,0.17490708]
[1755005863784,0.72389365,119710.0,119700.0,0.22105708]
[1755005864182,0.1263745,119710.0,119700.0,0.22105708]
[1755005864387,0.72389365,119710.0,119700.0,0.22105708]
[1755005864589,0.1182444,119710.0,119700.0,0.22105708]
[1755005864796,0.001,119710.0,119700.0,0.81857623]
[1755005866487,0.001,119710.0,119700.0,0.22105708]
[1755005866681,0.71576365,119710.0,119700.0,0.9848821]
[1755005866985,0.1263745,119710.0,119700.0,1.0684236]
[1755005867181,0.1182445,119710.0,119700.0,1.0684236]
[1755005867673,0.1263745,119710.0,119700.0,1.0684236]
[1755005867876,0.1263745,119710.0,119700.0,0.9848821]
[1755005868077,0.74664365,119710.0,119700.0,0.9386921]
[1755005868283,0.74664365,119710.0,119700.0,0.9386121]
[1755005868486,0.74664365,119710.0,119700.0,0.0914121]
[1755005868691,0.84664365,119710.0,119700.0,0.001]
[1755005868984,1.86088365,119710.0,119700.0,1e-07]
[1755005869183,0.0835553,119680.0,119670.0,0.0183447]
[1755005869388,0.74566445,119680.0,119670.0,0.0426047]
[1755005869780,0.1481453,119680.0,119670.0,0.0426047]
[1755005869980,0.74566445,119680.0,119670.0,0.0426047]
[1755005870287,0.74566445,119680.0,119670.0,0.0183447]
[1755005870489,0.0835693,119660.0,119650.0,0.02426]
[1755005870787,0.0835763,119650.0,119640.0,0.02426]
[1755005870989,0.74568545,119650.0,119640.0,0.02426]
[1755005871180,0.1172863,119650.0,119640.0,0.1539933]
[1755005871481,0.0835693,119660.0,119640.0,0.1539933]
[1755005871679,0.2507174,119660.0,119650.0,1.0009463]
[1755005871878,0.89007655,119660.0,119650.0,0.07041]
[1755005872185,0.3153074,119660.0,119650.0,0.02426]
[1755005872387,0.0835833,119640.0,119630.0,1.25456849]
[1755005872578,0.1254233,119640.0,119630.0,1.17097979]
[1755005872777,0.1172933,119640.0,119630.0,0.17294364]
[1755005873586,0.3680339,119650.0,119640.0,0.0835832]
[1755005873783,0.3761639,119650.0,119640.0,0.1539932]
[1755005873991,0.1671448,119660.0,119640.0,1.2516926]
[1755005874186,0.3342962,119660.0,119650.0,0.0835763]
[1755005874385,0.1671448,119660.0,119650.0,0.1539863]
[1755005874892,0.2008548,119660.0,119650.0,0.1569863]
[1755005875284,0.82925395,119660.0,119650.0,0.02726]
[1755005875482,0.82925395,119660.0,119650.0,0.003]
[1755005875683,0.0835763,119650.0,119640.0,0.9576423]
[1755005875886,0.0835833,119640.0,119630.0,0.06509344]
[1755005876091,0.74569245,119640.0,119630.0,0.15880364]
[1755005876295,0.74569245,119640.0,119630.0,0.17294364]
[1755005876492,0.1254233,119640.0,119630.0,0.17294364]
[1755005876690,0.1172933,119640.0,119630.0,0.17294364]
[1755005877293,0.0835833,119640.0,119630.0,0.77046279]
[1755005877492,0.3343223,119650.0,119630.0,1.02122309]
[1755005877694,0.167157,119650.0,119640.0,1.0037133]
[1755005878092,0.167157,119650.0,119640.0,0.07341]
[1755005878295,0.82926615,119650.0,119640.0,0.07041]
[1755005878494,0.82926615,119650.0,119640.0,0.02426]
[1755005878696,0.0835832,119640.0,119630.0,0.02294344]
[1755005878992,0.74569235,119640.0,119630.0,0.10353364]
[1755005879187,0.84825945,119650.0,119630.0,0.34111954]
[1755005879392,0.2844503,119650.0,119640.0,0.0835832]
[1755005879588,0.0835832,119640.0,119630.0,0.01994344]
[1755005879893,0.74569235,119640.0,119630.0,0.12779344]
[1755005880091,0.74569235,119640.0,119630.0,0.01994344]
[1755005880393,0.125413,119660.0,119630.0,1.02057894]
[1755005880591,0.05082371,119680.0,119670.0,0.083562]
[1755005880786,0.01711371,119680.0,119670.0,1.59805115]
[1755005880983,0.01711371,119680.0,119670.0,1.66392573]
[1755005881199,0.01711371,119680.0,119670.0,1.06640658]
[1755005881494,0.10066881,119680.0,119670.0,1.06640658]
[1755005881892,0.70018796,119680.0,119670.0,0.153972]
[1755005882096,0.74202796,119680.0,119670.0,0.153972]
[1755005882303,0.76481796,119680.0,119670.0,1.000532]
[1755005882797,0.14450881,119680.0,119670.0,1.000532]
[1755005882992,0.14650881,119680.0,119670.0,1.000532]
[1755005883385,0.13837881,119680.0,119670.0,1.000532]
[1755005883699,0.14650881,119680.0,119670.0,1.000532]
[1755005884203,0.14250881,119680.0,119670.0,1.001532]
[1755005885396,0.63743407,119680.0,119670.0,0.955262]
[1755005885601,0.63743407,119680.0,119670.0,0.02526]
[1755005885797,0.63743407,119680.0,119670.0,0.001]
[1755005886795,0.0835688,119660.0,119650.0,1.0839014]
[1755005886997,0.0835688,119660.0,119650.0,0.02496]
[1755005887194,0.0835758,119650.0,119640.0,1.0133639]
[1755005887399,0.0835758,119650.0,119640.0,1.0838339]
[1755005888195,0.0835758,119650.0,119640.0,0.2376339]
[1755005888398,0.61968106,119650.0,119640.0,0.02496]
[1755005888587,0.61968106,119650.0,119630.0,0.05070344]
[1755005888588,0.70326256,119650.0,119630.0,0.05070344]
[1755005888793,0.1247626,119640.0,119630.0,0.17300304]
[1755005888993,0.1247626,119640.0,119630.0,0.08941344]
[1755005889802,0.0835826,119640.0,119630.0,0.08941344]
[1755005889995,0.0835826,119640.0,119630.0,1.02004304]
[1755005890299,0.61968786,119640.0,119630.0,0.04490344]
[1755005890491,0.61968786,119640.0,119630.0,0.01994344]
[1755005890897,0.61968786,119640.0,119630.0,0.04490344]
[1755005891097,0.1475526,119640.0,119630.0,0.04490344]
[1755005891296,0.1475526,119640.0,119630.0,0.04890344]
[1755005891694,0.1247626,119640.0,119630.0,0.09441344]
[1755005891895,0.0836036,119610.0,119600.0,0.0434485]
[1755005892099,0.1303036,119610.0,119600.0,0.0752085]
[1755005892798,0.1166536,119610.0,119600.0,0.0752085]
[1755005892995,0.1166536,119610.0,119600.0,0.1588191]
[1755005893196,0.1303036,119610.0,119600.0,0.0792085]
[1755005893404,0.62522886,119610.0,119600.0,0.004]
[1755005893599,0.62522886,119610.0,119560.0,1.2392341]
[1755005893600,0.0836316,119570.0,119560.0,0.02496]
[1755005893789,0.0836386,119560.0,119550.0,0.00828248]
[1755005893991,0.0836386,119560.0,119530.0,0.043796]
[1755005893992,0.0836526,119540.0,119530.0,0.043796]
[1755005894198,0.0836526,119540.0,119530.0,0.18129648]
[1755005894404,0.2509482,119550.0,119540.0,0.0836526]
[1755005894604,0.0836526,119540.0,119530.0,0.26972806]
[1755005895196,0.0836526,119540.0,119530.0,0.34019806]
[1755005895499,0.0836526,119540.0,119530.0,0.25653846]
[1755005895702,0.1692962,119550.0,119540.0,0.0836526]
[1755005896003,0.77178406,119550.0,119540.0,0.02496]
[1755005896190,0.0836526,119540.0,119530.0,0.01875336]
[1755005896395,0.62527786,119540.0,119530.0,0.04371336]
[1755005896803,0.62527786,119540.0,119530.0,0.07547336]
[1755005897101,0.2731426,119540.0,119530.0,0.01875336]
[1755005897307,0.74527786,119540.0,119530.0,0.01875336]
[1755005897602,0.0836736,119510.0,119500.0,0.03871]
[1755005897797,0.60250886,119510.0,119500.0,0.07047]
[1755005897997,0.1531636,119510.0,119500.0,0.05672]
[1755005898199,0.62529886,119510.0,119500.0,0.05672]
[1755005898405,0.3205234,119510.0,119500.0,0.02496]
[1755005898705,0.2140528,119510.0,119500.0,0.1541506]
[1755005898897,0.3346878,119520.0,119500.0,0.237831]
[1755005899104,0.1531636,119510.0,119500.0,0.005]
[1755005899296,0.62529886,119510.0,119500.0,0.005]
[1755005899504,0.64228367,119510.0,119500.0,0.007]
[1755005899695,0.17014841,119510.0,119500.0,0.1156406]
[1755005899895,0.23736286,119510.0,119500.0,0.03196]
[1755005900106,0.21457286,119510.0,119500.0,0.1474006]
[1755005900299,0.21457286,119510.0,119500.0,0.1611506]
[1755005900495,0.13370841,119510.0,119500.0,0.1541506]
[1755005900708,0.13370841,119510.0,119500.0,0.1581506]
[1755005900709,0.02098481,119510.0,119500.0,0.1581506]
[1755005900896,0.02098481,119510.0,119500.0,1.2111906]
[1755005901101,0.02098481,119510.0,119500.0,1.68332586]
[1755005901300,0.02098481,119510.0,119500.0,1.2071906]
[1755005901500,0.10765791,119510.0,119500.0,0.1541506]
[1755005901706,0.57979317,119510.0,119500.0,0.1086406]
[1755005902012,0.64928317,119510.0,119500.0,0.02496]
[1755005902210,0.17414791,119510.0,119500.0,0.0836801]
[1755005902411,0.62349317,119510.0,119500.0,0.1223901]
[1755005902610,0.01898481,119510.0,119500.0,0.1541501]
[1755005903503,0.10365791,119510.0,119500.0,0.1541501]
[1755005903904,0.10365791,119510.0,119500.0,0.1561501]
[1755005904305,0.10065791,119510.0,119500.0,0.1561501]